bitfinex-derivatives/quotes_ETHF0:USTF0_20240922
["timestamp","ask_amount","ask_price","bid_price","bid_amount"]
[1727036173213,0.3865,2582.5,2582.3,3.2078]
[1727036173420,0.3865,2582.5,2582.4,0.38721]
[1727036174019,0.3865,2582.5,2582.3,3.59502]
[1727036174217,3.2078,2583.2,2582.3,5.3278]
[1727036174517,0.3734,2582.8,2582.5,0.38719]
[1727036174824,0.7569,2583.0,2582.8,0.38714]
[1727036174825,0.3846,2583.0,2582.8,0.38714]
[1727036175116,0.3734,2583.1,2582.9,0.38714]
[1727036175617,0.3734,2583.1,2582.8,3.59494]
[1727036175822,0.3734,2583.1,2582.9,0.38713]
[1727036176219,0.3734,2583.1,2582.8,3.2078]
[1727036176517,0.3734,2583.1,2582.9,0.38714]
[1727036176822,0.3734,2583.1,2582.8,3.2078]
[1727036176823,0.38707,2583.4,2583.0,0.38712]
[1727036177025,0.77678,2583.3,2583.0,0.38712]
[1727036177207,0.3897,2583.3,2583.1,3.2078]
[1727036177411,0.77678,2583.3,2583.1,3.5868]
[1727036177613,0.3897,2583.3,2582.7,3.9654]
[1727036178217,0.3897,2583.3,2582.8,0.38715]
[1727036178218,0.38711,2583.1,2582.8,0.38715]
[1727036178520,0.38709,2583.2,2583.0,3.2078]
[1727036178726,0.38711,2583.1,2583.0,3.2078]
[1727036179022,0.3871,2583.2,2583.0,3.2078]
[1727036180230,0.3871,2583.2,2582.8,0.38715]
[1727036180927,0.3871,2583.2,2582.9,0.38714]
[1727036181531,0.3871,2583.2,2582.7,6.0854]
[1727036181532,0.3871,2583.2,2582.8,0.38714]
[1727036181835,0.3871,2583.2,2583.0,3.2078]
[1727036182228,3.0157,2583.4,2582.7,3.9654]
[1727036182229,0.38714,2582.9,2582.7,3.9654]
[1727036182432,0.38713,2583.0,2582.7,4.35257]
[1727036183533,3.0157,2583.4,2582.7,6.0854]
[1727036183534,0.3897,2583.4,2582.7,6.0854]
[1727036183836,0.38711,2583.1,2582.7,6.0854]
[1727036184133,0.38713,2583.0,2582.7,4.35256]
[1727036184523,0.38711,2583.1,2582.8,0.38715]
[1727036184723,0.38714,2582.9,2582.7,3.9654]
[1727036184928,0.3745,2583.0,2582.7,3.9654]
[1727036185230,0.75554,2582.9,2582.7,3.9654]
[1727036185731,0.75554,2582.9,2582.7,0.7576]
[1727036185934,0.38717,2582.7,2582.6,0.379]
[1727036186935,0.75496,2582.8,2582.6,0.379]
[1727036187136,0.3684,2582.9,2582.6,0.379]
[1727036187336,0.38716,2582.8,2582.6,0.379]
[1727036187841,0.3684,2582.9,2582.6,0.379]
[1727036187842,0.38717,2582.7,2582.6,0.379]
[1727036188240,0.3872,2582.5,2582.2,0.7695]
[1727036188440,0.78789,2582.6,2582.3,0.3973]
[1727036189631,0.38721,2582.4,2582.3,0.3973]
[1727036190326,0.38721,2582.5,2582.3,0.3973]
[1727036191434,0.38718,2582.7,2582.3,0.78452]
[1727036191641,3.01318,2582.7,2582.4,0.7846]
[1727036193037,3.01318,2582.7,2582.3,0.78452]
[1727036193038,0.38721,2582.4,2582.3,0.3973]
[1727036193239,0.968,2582.5,2582.0,0.3801]
[1727036193445,0.38726,2582.1,2581.9,0.393]
[1727036194144,0.38725,2582.2,2581.9,0.393]
[1727036194542,0.38725,2582.2,2582.0,3.2078]
[1727036195144,0.38728,2582.0,2581.8,0.3882]
[1727036195740,0.38729,2581.9,2581.8,0.3882]
[1727036196040,0.3864,2582.3,2581.8,0.3882]
[1727036196341,3.01319,2582.6,2582.3,0.38722]
[1727036196643,3.01319,2582.6,2582.4,0.4062]
[1727036199540,3.01319,2582.6,2582.4,0.8073]
[1727036199936,0.3872,2582.5,2582.4,0.8073]
[1727036200633,3.9955,2582.8,2582.4,0.8073]
[1727036200833,0.3872,2582.5,2582.4,0.8073]
[1727036201034,0.38719,2582.6,2582.4,1.19451]
[1727036201935,4.96341,2582.8,2582.4,0.8073]
[1727036201936,1.17486,2582.8,2582.4,0.8073]
[1727036202144,0.3805,2582.8,2582.5,3.2078]
[1727036202444,0.3871,2583.2,2583.0,0.38711]
[1727036202639,0.3871,2583.2,2583.1,0.4029]
[1727036208744,0.78537,2583.4,2583.2,0.38709]
[1727036208943,0.38707,2583.4,2583.2,0.38709]
[1727036209146,0.38707,2583.4,2583.2,0.3968]
[1727036209742,0.7805,2583.6,2583.2,0.3968]
[1727036210051,0.38708,2583.3,2583.2,0.3968]
[1727036210651,0.7805,2583.6,2583.2,0.3968]
[1727036210848,0.7805,2583.6,2583.2,0.78389]
[1727036210849,0.38706,2583.5,2583.2,0.78389]
[1727036211053,0.7805,2583.6,2583.3,0.38707]
[1727036211054,1.16754,2583.6,2583.3,0.38707]
[1727036211249,0.3749,2583.6,2583.4,0.38705]
[1727036211946,0.3749,2583.6,2582.0,2.54802036]
[1727036211947,1.35525,2582.4,2582.3,0.584]
[1727036212143,13.9368,2582.4,2581.4,0.8048]
[1727036212355,2.12,2581.9,2581.4,0.8048]
[1727036212652,0.38733,2581.6,2581.4,0.8048]
[1727036212846,0.38732,2581.7,2581.4,0.8048]
[1727036213345,4.729,2581.9,2581.4,0.8048]
[1727036213547,2.12,2581.9,2581.4,0.8048]
[1727036213746,0.38731,2581.8,2581.4,0.8048]
[1727036214143,0.38732,2581.7,2581.4,0.8048]
[1727036215753,0.38733,2581.6,2581.4,0.8048]
[1727036215950,0.38732,2581.7,2581.4,1.19216]
[1727036216251,0.38732,2581.7,2581.4,0.8048]
[1727036216446,0.38732,2581.7,2581.4,1.19216]
[1727036218555,0.38732,2581.7,2581.4,0.8048]
[1727036220449,0.38733,2581.6,2581.4,0.8048]
[1727036221161,7.9368,2581.9,2581.4,0.8048]
[1727036221162,0.38735,2581.5,2581.4,0.8048]
[1727036221659,1.76246,2581.8,2581.4,4.6784]
[1727036221857,0.38734,2581.6,2581.4,0.8048]
[1727036222160,0.3917,2581.8,2581.4,0.8048]
[1727036222354,0.38726,2582.1,2581.8,0.38729]
[1727036222557,3.2078,2582.2,2581.5,7.0814]
[1727036222558,3.2078,2582.2,2581.9,2.12]
[1727036222759,3.2078,2582.6,2582.1,2.12]
[1727036222960,3.97931,2583.1,2582.8,0.38714]
[1727036223261,0.38712,2583.0,2582.8,2.12]
[1727036223457,0.38712,2583.1,2582.8,2.50715]
[1727036224155,0.38712,2583.1,2582.8,2.9278]
[1727036224461,0.38712,2583.1,2582.8,3.31495]
[1727036225261,0.38712,2583.0,2582.8,3.31495]
[1727036225753,0.38712,2583.1,2582.8,7.18695]
[1727036226062,0.38712,2583.1,2582.8,3.31495]
[1727036227868,0.38712,2583.0,2582.8,3.31495]
[1727036228558,0.3871,2583.2,2583.0,0.38711]
[1727036228760,0.38706,2583.5,2583.0,2.12]
[1727036228961,0.38706,2583.5,2583.2,0.38708]
[1727036229270,8.90434,2583.8,2583.0,2.12]
[1727036229271,0.38705,2583.6,2583.0,2.12]
[1727036229562,0.38705,2583.6,2583.4,0.38706]
[1727036230064,0.38703,2583.7,2583.5,2.50705]
[1727036230266,3.2078,2583.8,2583.5,2.12]
[1727036230463,0.38703,2583.6,2583.5,2.12]
[1727036231258,0.96756,2583.7,2583.2,3.2078]
[1727036231470,3.08756,2583.7,2583.2,3.2078]
[1727036231766,0.38708,2583.3,2583.1,0.3871]
[1727036231963,0.38708,2583.3,2583.0,0.38711]
[1727036232270,0.38708,2583.3,2583.1,0.3871]
[1727036233159,3.2078,2583.5,2583.0,3.2078]
[1727036233363,3.2078,2583.5,2582.8,2.9278]
[1727036233364,0.38712,2583.1,2582.9,0.38714]
[1727036233564,0.38711,2583.2,2582.9,0.38714]
[1727036233868,0.38711,2583.1,2582.9,0.38714]
[1727036234055,0.38711,2583.1,2582.9,3.59494]
[1727036234874,0.38712,2583.0,2582.9,3.2078]
[1727036237159,0.38712,2583.0,2582.9,7.079]
[1727036240374,0.38712,2583.0,2582.9,3.2078]
[1727036240766,1.36863,2583.3,2582.9,3.59494]
[1727036241172,0.38712,2583.0,2582.9,3.2078]
[1727036243678,0.38712,2583.0,2582.9,3.59494]
[1727036245683,0.38711,2583.1,2582.9,3.2078]
[1727036245980,0.38711,2583.1,2582.9,3.59493]
[1727036246284,0.38712,2583.0,2582.9,3.59493]
[1727036246579,0.38712,2583.0,2582.9,3.2078]
[1727036247280,0.38712,2583.0,2582.9,3.59494]
[1727036249883,0.38712,2583.0,2582.9,3.2078]
[1727036251382,0.38712,2583.0,2582.9,3.59494]
[1727036252875,0.38712,2583.0,2582.9,3.2078]
[1727036253071,0.38714,2582.9,2582.8,0.4012]
[1727036253485,1.37513,2583.0,2582.6,2.12]
[1727036253683,0.38716,2582.8,2582.7,0.38716]
[1727036260075,1.37513,2583.0,2582.7,0.38716]
[1727036260281,0.38715,2582.9,2582.8,0.38715]
[1727036261283,1.37513,2583.0,2582.7,0.38716]
[1727036261284,0.38715,2582.8,2582.7,0.38716]
[1727036262583,0.38717,2582.7,2582.6,2.50718]
[1727036265286,0.38718,2582.6,2582.5,1.17009]
[1727036267784,0.38718,2582.6,2582.5,0.77559]
[1727036268292,0.38718,2582.6,2582.5,2.11005527]
[1727036269084,0.38718,2582.6,2582.5,3.11652372]
[1727036270382,0.38718,2582.6,2582.5,1.78205845]
[1727036270988,0.38718,2582.6,2582.5,3.11632707]
[1727036271389,0.38718,2582.6,2582.5,3.11628667]
[1727036271690,0.38718,2582.6,2582.5,1.78205845]
[1727036273891,0.38718,2582.7,2582.6,0.38717]
[1727036274087,0.38715,2582.9,2582.8,0.38714]
[1727036274795,0.38715,2582.9,2582.8,0.76294]
[1727036279382,0.38715,2582.9,2582.8,1.76940845]
[1727036280603,0.38715,2582.9,2582.8,0.3758]
[1727036281392,0.38715,2582.9,2582.8,0.76295]
[1727036281790,0.38715,2582.8,2582.7,1.00646845]
[1727036282391,0.38715,2582.8,2582.7,1.39363845]
[1727036282691,0.38715,2582.8,2582.7,1.00646845]
[1727036286085,0.38717,2582.7,2582.6,1.00646845]
[1727036286800,0.77947,2582.7,2582.6,1.00646845]
[1727036287004,0.77947,2582.7,2582.6,2.34097214]
[1727036287390,4.65147,2582.7,2582.6,1.00646845]
[1727036287595,8.44003,2582.7,2582.4,1.00646845]
[1727036287801,0.3872,2582.5,2582.4,1.39367845]
[1727036289806,0.3872,2582.5,2582.4,1.00646845]
[1727036290002,0.3872,2582.5,2582.2,1.00646845]
[1727036290199,0.38723,2582.3,2582.2,1.00646845]
[1727036290803,0.38724,2582.2,2582.1,1.37566845]
[1727036290998,1.14594,2582.2,2582.1,3.21104145]
[1727036291199,1.14594,2582.2,2582.1,1.70389067]
[1727036292300,1.14594,2582.2,2582.1,2.34098259]
[1727036293103,1.14594,2582.2,2582.1,1.00629192]
[1727036293411,0.38726,2582.1,2582.0,1.00629192]
[1727036295211,1.14595,2582.2,2582.0,1.98629192]
[1727036295401,0.3872,2582.5,2582.1,0.98]
[1727036295811,0.38723,2582.3,2582.2,0.38724]
[1727036296700,0.38724,2582.2,2582.1,0.38725]
[1727036296901,0.38726,2582.1,2582.0,2.37355192]
[1727036297102,0.38725,2582.2,2582.0,1.36726]
[1727036300408,0.38725,2582.2,2582.1,0.38726]
[1727036303316,0.38726,2582.1,2582.0,0.38726]
[1727036305008,0.38727,2582.0,2581.9,4.34498]
[1727036305218,0.38727,2582.1,2582.0,0.38727]
[1727036305410,0.38727,2582.0,2581.9,1.13718]
[1727036305610,0.77997,2582.0,2581.9,0.3766]
[1727036305807,0.77997,2582.0,2581.6,2.18711192]
[1727036305808,4.2655,2582.0,2581.6,2.18711192]
[1727036306106,4.2655,2582.0,2581.6,0.388]
[1727036306107,0.38732,2581.7,2581.6,0.388]
[1727036307221,4.26092,2581.7,2581.6,0.388]
[1727036308924,3.8736,2581.7,2581.6,0.388]
[1727036309111,0.3873,2581.9,2581.6,0.388]
[1727036309312,0.3873,2581.9,2581.7,0.3743]
[1727036309512,0.3873,2581.9,2581.6,0.38732]
[1727036309725,0.38732,2581.7,2581.6,0.388]
[1727036310123,3.3868,2582.0,2581.6,0.388]
[1727036310323,3.7936,2582.0,2581.6,0.388]
[1727036311119,0.38732,2581.7,2581.6,0.388]
[1727036316228,0.38732,2581.8,2581.6,0.77532]
[1727036316626,4.76182,2582.0,2581.6,0.77532]
[1727036316926,0.38731,2581.8,2581.6,0.77532]
[1727036317823,0.38732,2581.7,2581.6,0.388]
[1727036318018,1.35562,2581.7,2581.6,0.388]
[1727036318219,5.22922,2581.7,2581.6,0.388]
[1727036319018,1.35562,2581.7,2581.6,0.388]
[1727036319417,5.22922,2581.7,2581.6,0.388]
[1727036319624,1.35562,2581.7,2581.6,0.388]
[1727036320823,0.38732,2581.7,2581.6,0.388]
[1727036321330,3.2078,2581.9,2581.8,0.3873]
[1727036321836,0.38732,2581.7,2581.6,0.388]
[1727036322133,0.38727,2582.1,2581.9,0.38729]
[1727036322433,0.38727,2582.1,2582.0,0.3912]
[1727036322620,0.38729,2581.9,2581.7,0.38731]
[1727036322825,0.76588,2582.0,2581.8,0.7785]
[1727036325031,0.38729,2581.9,2581.8,0.3912]
[1727036325725,0.98,2581.9,2581.6,0.388]
[1727036325928,0.38732,2581.7,2581.6,0.388]
[1727036328026,1.36732,2581.7,2581.6,0.388]
[1727036328432,2.33562,2581.7,2581.6,0.388]
[1727036330433,3.47562,2581.7,2581.6,0.388]
[1727036330633,6.06462,2581.7,2581.6,0.388]
[1727036332338,1.35567,2581.6,2581.5,0.388]
[1727036332639,4.97087,2581.6,2581.5,0.388]
[1727036332839,15.81281,2581.6,2581.5,0.388]
[1727036333236,15.81281,2581.6,2581.1,0.388]
[1727036333237,0.38739,2581.2,2581.1,0.388]
[1727036333441,2.50739,2581.2,2581.1,0.388]
[1727036333833,2.91479,2581.2,2581.1,0.388]
[1727036334238,6.78919,2581.2,2581.1,0.388]
[1727036335338,7.75768,2581.2,2581.1,0.388]
[1727036336241,10.34668,2581.2,2581.1,0.388]
[1727036337439,5.50379,2581.2,2581.1,0.388]
[1727036337646,9.37819,2581.2,2581.1,0.388]
[1727036338735,5.50379,2581.2,2581.1,0.388]
[1727036339346,9.37819,2581.2,2581.1,0.388]
[1727036339930,5.50379,2581.2,2581.1,0.388]
[1727036340346,0.38741,2581.1,2581.0,0.388]
[1727036340838,6.19887,2581.1,2581.0,0.388]
[1727036341033,8.31887,2581.1,2581.0,0.388]
[1727036341232,14.31887,2581.1,2581.0,0.388]
[1727036341436,0.38747,2580.7,2580.6,0.388]
[1727036341836,2.15855,2580.7,2580.6,0.388]
[1727036343339,1.77075,2580.7,2580.6,0.388]
[1727036343543,1.77042,2580.7,2580.6,0.388]
[1727036343744,0.99482,2580.7,2580.6,0.388]
[1727036343946,3.58382,2580.7,2580.6,0.388]
[1727036344245,2.80855,2580.7,2580.6,0.388]
[1727036344551,6.87683,2580.7,2580.6,0.388]
[1727036344848,6.8765,2580.7,2580.6,0.388]
[1727036345148,6.4887,2580.7,2580.6,0.388]
[1727036345343,6.1009,2580.7,2580.6,0.388]
[1727036345648,5.7131,2580.7,2580.6,0.388]
[1727036345839,5.3253,2580.7,2580.6,0.388]
[1727036346037,5.23135,2580.7,2580.6,0.388]
[1727036346243,7.5265,2580.7,2580.6,0.388]
[1727036347537,6.85167,2580.7,2580.6,0.388]
[1727036348743,3.2078,2580.8,2580.6,0.388]
[1727036348943,3.2078,2580.8,2580.5,0.4006]
[1727036348944,5.7968,2580.8,2580.7,0.388]
[1727036349146,6.18425,2580.8,2580.7,0.388]
[1727036349540,5.7968,2580.8,2580.7,0.388]
[1727036349943,6.18425,2580.8,2580.7,0.388]
[1727036350150,6.18425,2580.8,2580.6,0.388]
[1727036350448,6.18425,2580.8,2580.6,0.77548]
[1727036350648,2.97645,2580.8,2580.6,0.77548]
[1727036350850,2.97645,2580.8,2580.6,0.388]
[1727036351350,2.97645,2580.8,2580.6,0.77548]
[1727036351740,2.97645,2580.8,2580.6,0.388]
[1727036353345,0.38747,2580.7,2580.6,0.388]
[1727036353849,1.36747,2580.7,2580.6,0.388]
[1727036354643,6.21135,2580.7,2580.6,0.388]
[1727036355149,0.96875,2580.5,2580.2,3.2078]
[1727036355349,0.96875,2580.5,2580.0,0.38757]
[1727036355350,0.97974,2580.3,2580.0,0.3796]
[1727036355540,3.2078,2580.5,2580.1,0.38755]
[1727036355541,4.1878,2580.5,2580.1,0.38755]
[1727036355740,4.1878,2580.5,2580.0,0.3796]
[1727036356138,4.1878,2580.5,2580.0,0.76716]
[1727036356540,4.1878,2580.5,2580.0,0.3796]
[1727036356749,4.5753,2580.5,2580.2,0.38754]
[1727036356948,1.3675,2580.5,2580.3,0.3827]
[1727036357140,0.38749,2580.6,2580.4,0.3703]
[1727036357346,2.97649,2580.6,2580.4,0.7499]
[1727036358450,0.38753,2580.3,2580.2,3.2078]
[1727036358645,0.38753,2580.3,2580.1,0.7637]
[1727036359249,0.98,2580.5,2580.1,0.7637]
[1727036359445,0.38754,2580.3,2580.1,0.7637]
[1727036361150,0.38752,2580.4,2580.1,1.15126]
[1727036361362,0.38751,2580.4,2580.1,0.7637]
[1727036361651,0.38753,2580.3,2580.1,0.7637]
[1727036362248,0.38754,2580.2,2580.1,0.7637]
[1727036363542,0.98,2580.3,2580.1,0.7637]
[1727036363543,1.36754,2580.3,2580.1,0.7637]
[1727036364142,3.876,2580.3,2579.7,3.2078]
[1727036364343,0.98,2580.0,2579.9,0.3756]
[1727036364543,1.36757,2580.0,2579.9,0.3756]
[1727036370957,3.569,2580.0,2579.9,0.3756]
[1727036371453,2.589,2580.0,2579.9,0.3756]
[1727036371844,2.97657,2580.0,2579.9,0.3756]
[1727036373952,3.95657,2580.0,2579.9,0.3756]
[1727036376052,3.95657,2580.0,2579.4,0.96915]
[1727036376053,0.38762,2579.7,2579.4,0.38765]
[1727036376260,3.55797,2580.0,2579.5,0.7609]
[1727036376460,3.55797,2580.0,2579.5,1.14854]
[1727036376461,0.3876,2579.8,2579.5,1.14854]
[1727036377667,0.98,2579.6,2579.5,1.14854]
[1727036380361,1.36763,2579.6,2579.5,0.7609]
[1727036382159,0.98,2579.6,2579.5,0.7609]
[1727036382365,0.98,2579.6,2579.5,1.14855]
[1727036389570,0.98,2579.9,2579.5,4.6377]
[1727036389865,3.6084,2580.1,2580.0,0.38757]
[1727036389866,0.98,2580.1,2580.0,0.38757]
[1727036391061,0.98,2580.1,2579.9,1.54018]
[1727036392678,0.98,2580.1,2580.0,0.38757]
[1727036393672,1.36756,2580.1,2579.9,1.54018]
[1727036393864,0.38757,2580.0,2579.9,0.7741]
[1727036396070,0.38757,2580.0,2579.9,0.3846]
[1727036399474,1.36757,2580.0,2579.9,0.3846]
[1727036400277,3.95657,2580.0,2579.9,0.3846]
[1727036402278,3.95657,2580.0,2579.8,0.368]
[1727036402480,0.3815,2579.9,2579.8,0.368]
[1727036404077,3.95657,2580.0,2579.8,0.368]
[1727036404880,3.569,2580.0,2579.8,0.7556]
[1727036405070,2.20143,2580.0,2579.8,0.368]
[1727036405383,3.18143,2580.0,2579.9,0.3959]
[1727036405978,3.18143,2580.0,2579.9,0.78349]
[1727036406382,3.5079062,2580.6,2580.4,0.38751]
[1727036406574,0.98,2580.6,2580.5,0.7875]
[1727036406779,0.98,2580.6,2580.5,1.1558]
[1727036407180,0.98,2580.6,2580.5,1.5433]
[1727036407382,0.98,2580.7,2580.6,0.38748]
[1727036411484,3.2078,2580.9,2580.6,3.8752]
[1727036411687,0.98,2581.0,2580.8,0.38745]
[1727036411883,0.98,2581.0,2580.9,0.3721]
[1727036412189,0.98,2581.2,2581.1,0.3874]
[1727036414685,0.98,2581.2,2581.1,4.2618]
[1727036414993,0.98,2581.4,2581.3,0.38736]
[1727036415591,0.98,2581.4,2581.2,0.38739]
[1727036416289,2.12,2581.4,2581.3,0.38738]
[1727036417080,2.12,2581.4,2581.2,0.38738]
[1727036417280,2.12,2581.3,2581.2,0.38738]
[1727036420187,2.12,2581.3,2581.0,3.9916]
[1727036420491,2.12,2581.3,2580.5,4.135]
[1727036420492,2.12,2581.1,2580.5,4.135]
[1727036420693,2.12,2580.8,2580.6,1.17668]
[1727036423890,2.12,2580.8,2580.7,0.38747]
[1727036430487,0.7827,2581.0,2580.7,0.38747]
[1727036430488,3.29013,2581.0,2580.7,0.38747]
[1727036430689,0.38745,2580.9,2580.6,0.7892]
[1727036431089,3.29014,2581.0,2580.7,0.38746]
[1727036432591,2.12,2581.0,2580.9,0.38744]
[1727036432793,3.3698,2581.2,2581.0,0.38742]
[1727036433000,2.9824,2581.2,2580.8,0.38745]
[1727036433201,0.38743,2581.0,2580.8,0.38745]
[1727036433700,2.50742,2581.1,2580.8,0.38745]
[1727036433999,2.12,2581.1,2580.7,3.2078]
[1727036434403,2.50741,2581.1,2580.9,0.38743]
[1727036435500,2.12,2581.1,2580.9,0.38743]
[1727036436299,0.98,2581.0,2580.9,0.38743]
[1727036437799,0.98,2581.0,2580.7,3.59526]
[1727036438007,0.98,2580.8,2580.6,1.17667]
[1727036438191,0.3826,2580.7,2580.6,1.17667]
[1727036442105,1.3581,2580.8,2580.7,0.38747]
[1727036443703,1.74555,2580.8,2580.7,0.38747]
[1727036444199,1.3581,2580.8,2580.7,0.38747]
[1727036449202,1.3581,2580.8,2580.6,1.17667]
[1727036449203,1.74555,2580.8,2580.6,1.17667]
[1727036449503,1.3581,2580.8,2580.6,1.17667]
[1727036450505,1.3581,2580.8,2580.7,0.38747]
[1727036451202,0.98,2580.8,2580.7,0.38747]
[1727036455309,1.36745,2580.8,2580.7,0.38747]
[1727036455506,0.98,2580.8,2580.7,0.38747]
[1727036461312,4.8552,2580.8,2580.3,1.12262639]
[1727036461516,0.3717,2580.9,2580.3,0.114]
[1727036461517,1.36751,2580.4,2580.3,0.114]
[1727036461729,9.09989,2580.4,2580.3,0.114]
[1727036462016,9.09989,2580.4,2579.7,2.13323639]
[1727036462017,0.3876,2579.9,2579.7,2.13323639]
[1727036462211,1.3676,2579.9,2579.7,1.12461]
[1727036462925,1.36759,2579.9,2579.7,1.12461]
[1727036463229,0.09,2580.8,2580.4,0.3875]
[1727036463515,0.98,2581.1,2580.7,0.38747]
[1727036463723,3.96650742,2581.2,2580.6,3.2078]
[1727036463919,0.79379,2581.3,2581.0,0.38742]
[1727036463920,0.4064,2581.3,2581.0,0.38742]
[1727036464117,0.98,2581.3,2581.1,0.3835]
[1727036464321,5.09436,2581.5,2581.1,0.3835]
[1727036464513,4.707,2581.5,2581.1,0.3835]
[1727036464710,2.12,2581.5,2581.1,0.3835]
[1727036464910,5.09436,2581.5,2581.1,0.3835]
[1727036466415,5.09436,2581.5,2581.1,0.7709]
[1727036466416,4.707,2581.5,2581.1,0.7709]
[1727036466922,4.707,2581.5,2581.1,0.3835]
[1727036467224,2.12,2581.5,2581.1,0.3835]
[1727036467418,2.12,2581.5,2581.1,0.7709]
[1727036467623,2.12,2581.5,2581.2,0.3772]
[1727036468423,2.9934,2581.6,2581.2,0.3772]
[1727036468725,2.12,2581.4,2581.2,0.3772]
[1727036468921,2.12,2581.4,2581.2,0.76459]
[1727036469119,2.12,2581.4,2581.2,3.97239]
[1727036473025,2.98650742,2582.3,2581.3,7.33551]
[1727036473221,0.3961,2582.1,2581.6,1.00804586]
[1727036473428,0.3961,2582.1,2581.8,0.38729]
[1727036476136,0.3961,2582.1,2581.9,0.3821]
[1727036478736,0.3961,2582.1,2581.3,2.9577]
[1727036478737,0.38731,2581.8,2581.4,3.2078]
[1727036478937,2.12,2581.5,2581.4,0.4052]
[1727036479446,2.12,2581.5,2581.4,0.79256]
[1727036480242,0.8107,2581.7,2581.4,0.79256]
[1727036481127,0.8107,2581.7,2581.4,4.00036]
[1727036481333,0.8107,2581.7,2581.5,0.38734]
[1727036482337,0.8107,2581.7,2581.4,4.00035]
[1727036485847,0.8107,2581.7,2581.5,0.38735]
[1727036486043,0.8107,2581.7,2581.4,4.00035]
[1727036487247,0.8107,2581.7,2581.5,0.38735]
[1727036488238,0.8107,2581.7,2581.5,0.38734]
[1727036492343,0.8107,2581.7,2581.6,0.38733]
[1727036493248,0.8107,2581.7,2581.5,0.38734]
[1727036494941,0.8107,2581.7,2581.6,0.38733]
[1727036495855,0.4078,2581.7,2581.6,0.38733]
[1727036496350,0.4078,2581.7,2581.2,0.3772]
[1727036496351,4.5956,2581.7,2581.2,0.3772]
[1727036496545,0.38737,2581.4,2581.1,0.3874]
[1727036496749,0.4021,2581.3,2581.1,0.3874]
[1727036496948,0.7853,2581.3,2581.2,0.38739]
[1727036498252,0.3832,2581.3,2581.2,0.38739]
[1727036498451,1.36733,2581.7,2581.1,3.2078]
[1727036498647,0.3995,2581.6,2581.3,0.38736]
[1727036498846,0.3995,2581.6,2581.1,3.2078]
[1727036499152,0.78684,2581.6,2581.3,0.38737]
[1727036499451,0.78684,2581.6,2581.2,0.38738]
[1727036499452,0.38735,2581.5,2581.2,0.38738]
[1727036499847,0.98,2581.5,2581.1,3.5952]
[1727036500042,0.98,2581.5,2581.1,3.2078]
[1727036500043,0.38737,2581.4,2581.1,3.2078]
[1727036500247,0.3995,2581.6,2581.1,3.2078]
[1727036500248,1.7339,2581.3,2581.1,3.2078]
[1727036500551,0.38739,2581.2,2581.1,3.2078]
[1727036500757,0.78689,2581.2,2581.1,3.2078]
[1727036501659,0.78689,2581.2,2581.0,0.3868]
[1727036501660,0.3995,2581.2,2581.0,0.77422]
[1727036506765,0.3995,2581.2,2581.1,0.38741]
[1727036507058,0.3995,2581.2,2581.0,0.77421]
[1727036507259,0.7869,2581.2,2580.9,0.38743]
[1727036507462,0.7869,2581.2,2580.9,0.38742]
[1727036507655,0.7869,2581.2,2580.8,0.3943]
[1727036508060,0.7869,2581.2,2581.0,0.38742]
[1727036508365,0.3995,2581.2,2581.0,0.38742]
[1727036511265,0.3995,2581.2,2581.1,0.38741]
[1727036511656,0.3995,2581.2,2580.8,1.39961372]
[1727036511965,0.3995,2581.2,2581.0,0.38741]
[1727036513663,0.3995,2581.2,2580.8,1.39961372]
[1727036514564,0.3995,2581.2,2581.1,0.38741]
[1727036514761,0.3995,2581.2,2581.0,0.38741]
[1727036515655,0.78689,2581.2,2581.0,0.38741]
[1727036515856,0.14329021,2581.6,2581.5,0.38735]
[1727036516160,0.98,2581.6,2581.1,0.96853]
[1727036516363,1.3481,2581.6,2581.2,0.7581]
[1727036516665,1.3481,2581.6,2581.4,0.38735]
[1727036517569,0.3681,2581.6,2581.5,0.38735]
[1727036517768,0.3681,2581.6,2581.4,0.38736]
[1727036520362,0.3681,2581.6,2581.4,0.38735]
[1727036520661,0.75545,2581.6,2581.3,3.59517]
[1727036520964,0.3707,2581.5,2581.4,0.38736]
[1727036523360,0.7463,2581.5,2581.4,0.38736]
[1727036525063,0.7463,2581.5,2581.3,0.38737]
[1727036525265,2.11365,2581.5,2581.2,1.14548]
[1727036525571,0.38736,2581.4,2581.2,1.14548]
[1727036525768,1.36738,2581.3,2581.0,3.2078]
[1727036525965,0.98,2581.1,2581.0,3.2078]
[1727036526269,0.368,2581.2,2581.0,3.59522]
[1727036527072,0.368,2581.2,2581.0,4.60053372]
[1727036528573,0.368,2581.2,2581.0,1.39273372]
[1727036528874,0.368,2581.2,2581.0,4.60053372]
[1727036529977,0.75539,2581.2,2581.0,4.60053372]
[1727036530569,0.368,2581.2,2581.0,4.60053372]
[1727036531679,0.7554,2581.2,2581.0,4.60053372]
[1727036531870,0.7554,2581.2,2581.0,4.21311372]
[1727036532069,0.7554,2581.2,2581.0,4.60053372]
[1727036532573,0.368,2581.2,2581.0,4.60053372]
[1727036533579,0.368,2581.2,2581.0,3.59522]